Cogmind - Beta 12 @@@ ROGUE MODE // 2023.03.12 @ 01:43:11 Player: dhtilly Result: Destroyed by G-67 Veteran with Plasma Rifle Performance ------------- Evolutions (6) 3000 Regions Visited (17) 3400 Robots Destroyed (44) 220 Value Destroyed (3828) 3828 Prototype IDs (3) 60 Alien Tech Used (0) 0 Bonus (5093) 5093 TOTAL SCORE: 15601 Bonus ------- Follower Combat Kills 993 Entered Garrisons 600 Used RIF Installer 2000 Entered DSFs 1500 Cogmind --------- Core Integrity 0/1150 Matter 82/300 Energy 100/100 System Corruption 15% Temperature Cool (37) Movement Core (50) Location -4/Factory Parts ------- > --- POWER (1) -------- (None) > --- PROPULSION (5) --- Advanced VSS Leg > --- UTILITY (11) ----- Experimental Signal Interpreter Relay Coupler [Swarmer] (33) > --- WEAPON (2) ------- Remote Datajack > --- INVENTORY (5) ---- Medium Storage Unit Relay Coupler [NC] (29) Relay Coupler [Specialist] (14) Relay Coupler [Behemoth] (10) Wave Gun Peak State ------------ > --- POWER ------------ Light Nuclear Core > --- PROPULSION ------- Improved Heavy Treads Impulse Thruster Impulse Thruster Impulse Thruster > --- UTILITY ---------- Medium Storage Unit Experimental Signal Interpreter Advanced Targeting Computer Relay Coupler [NC] Relay Coupler [Swarmer] Relay Coupler [Swarmer] Relay Coupler [Grunt] Relay Coupler [Sentry] Relay Coupler [Demolisher] > --- WEAPON ----------- Improved Remote Datajack > --- INVENTORY -------- Improved Heavy Treads Antigrav System Antigrav System Relay Coupler [NC] Relay Coupler [Specialist] Relay Coupler [Behemoth] Wave Gun Falx [Rating: 79] Favorites ----------- Power Light Nuclear Core Engine Light Ion Engine Power Core Light Nuclear Core Propulsion Xenon Bombardment Thruster Treads Armored Medium Treads Leg Carbon-fiber Leg Wheel Compact Wheel Hover Unit Antigrav System Flight Unit Xenon Bombardment Thruster Utility Relay Coupler [Swarmer] Device Recoil Stabilizer Storage Medium Storage Unit Processor Advanced Targeting Computer Hackware Relay Coupler [Swarmer] Protection Improved Light Armor Plating Weapon Improved Datajack Energy Gun EM Shotgun Ballistic Gun Assault Rifle Launcher Missile Launcher Special Weapon Remote Datajack Slashing Weapon Falx Special Melee Weapon Improved Datajack Build | -11 -10 -9 -9 -8 -8 -7 -7 -6 -6 -6 -6 -6 -5 -5 -4 -4 -4 ------- Run | Jun Mat Mat Min Mat Gar Fac DSF Fac Gar Fac DSF Gar Fac DSF Fac Was Fac Slots Evolved 12 | . . 2 . 2 . 2 . 2 . . . . 2 . 2 . . Power . | . . . . . . . . . . . . . . . . . . Propulsion 3 | . . 1 . 1 . . . . . . . . . . 1 . . Utility 9 | . . 1 . 1 . 2 . 2 . . . . 2 . 1 . . Weapon . | . . . . . . . . . . . . . . . . . . Parts Attached 178 | 6 8 11 . 15 9 1 14 . 24 . 3 53 1 5 13 . 15 Power 19 | 1 2 2 . 4 . . 1 . 3 . 1 4 . . . . 1 Engine 9 | 1 2 2 . 4 . . . . . . . . . . . . . Core 10 | . . . . . . . 1 . 3 . 1 4 . . . . 1 Reactor . | . . . . . . . . . . . . . . . . . . Propulsion 61 | 2 3 4 . 5 1 . 8 . 8 . 1 14 . 1 5 . 9 Treads 4 | . 1 . . . 1 . . . . . . . . . . . 2 Leg 4 | . . . . . . . . . . . . 3 . . . . 1 Wheel 3 | 2 . . . 1 . . . . . . . . . . . . . Hover 2 | . . . . . . . . . . . . . . . . . 2 Flight 48 | . 2 4 . 4 . . 8 . 8 . 1 11 . 1 5 . 4 Utility 35 | 1 1 2 . 3 6 1 3 . 8 . . 6 1 1 2 . . Device 1 | . . . . 1 . . . . . . . . . . . . . Storage 5 | 1 1 1 . . . . 1 . . . . . . 1 . . . Processor 5 | . . 1 . 2 . 1 . . . . . . . . 1 . . Hackware 22 | . . . . . 5 . 1 . 8 . . 6 1 . 1 . . Protection 2 | . . . . . 1 . 1 . . . . . . . . . . Artifact . | . . . . . . . . . . . . . . . . . . Weapon 63 | 2 2 3 . 3 2 . 2 . 5 . 1 29 . 3 6 . 5 Energy Gun 13 | 1 1 1 . 2 . . . . 1 . . 3 . 2 1 . 1 Energy Cannon . | . . . . . . . . . . . . . . . . . . Ballistic Gun 3 | 1 1 . . . . . . . . . . . . . 1 . . Ballistic Cannon . | . . . . . . . . . . . . . . . . . . Launcher 6 | . . 2 . 1 . . . . 2 . 1 . . . . . . Special Weapon 15 | . . . . . . . . . . . . 10 . 1 2 . 2 Impact Weapon . | . . . . . . . . . . . . . . . . . . Slashing Weapon 22 | . . . . . 1 . 2 . 2 . . 13 . . 2 . 2 Piercing Weapon . | . . . . . . . . . . . . . . . . . . Special Melee Weapon 4 | . . . . . 1 . . . . . . 3 . . . . . Unidentified Prototypes 3 | . . . . 1 . . . . . . . . . . 2 . . Parts Lost 51 | . 1 2 . 2 . . 2 . 6 . 4 9 . 1 5 . 19 Power 5 | . . 1 . . . . . . 1 . . 1 . . 1 . 1 Propulsion 28 | . 1 1 . 1 . . . . 3 . 2 6 . 1 3 . 10 Utility 11 | . . . . . . . 2 . 1 . 1 1 . . . . 6 Weapon 7 | . . . . 1 . . . . 1 . 1 1 . . 1 . 2 Highest Loss Streak 13 | . 1 2 . 1 . . 1 . 4 . 4 7 . 1 4 . 13 To Critical Strikes 1 | . . . . . . . . . . . . . . . . . 1 Average Slot Usage (%) 81 | . 77 64 77 72 89 89 93 80 93 86 83 84 88 88 79 63 54 Engine 4 | . 14 10 11 8 9 7 1 . . . . . . . . . . Core 2 | . . . . . . . 5 6 6 6 6 5 5 5 4 . 1 Treads 1 | . 2 . . . 8 7 1 . . . . . . . . . 2 Wheel 1 | . 18 . . 6 . . . . . . . . . . . . . Flight 21 | . 2 32 33 24 27 23 28 26 25 26 24 19 23 23 18 10 7 Storage 7 | . 12 9 11 9 9 7 7 6 6 6 6 6 5 5 5 5 3 Processor 6 | . . 5 11 10 8 5 7 6 6 6 6 6 5 5 9 10 8 Hackware 19 | . . . . . 10 23 20 13 29 33 33 33 41 41 35 31 23 Protection 1 | . . . . . 3 . 3 6 6 6 4 . . . . . . Energy Gun 3 | . 13 4 11 13 . . . . . . . . . . 1 5 1 Ballistic Gun 1 | . 13 1 . . . . . . . . . . . . . . . Special Weapon 1 | . . . . . . . . . . . . 3 5 4 3 . 1 Slashing Weapon 2 | . . . . . 4 7 7 6 5 . . 1 . . . . . Special Melee Weapon 2 | . . . . . 8 7 7 6 4 . . . . . . . . Naked Turns . | . . . . . . . . . . . . . . . . . . Heaviest Build 31 | 14 31 12 11 12 12 11 23 23 25 18 18 23 18 18 22 15 24 Greatest Support 45 | 26 26 12 12 12 12 12 24 24 24 19 19 45 18 18 27 17 28 Greatest Overweight (x) 4 | . 1 . . . . . . . 1 . . 4 . . 1 . 3 Average Overweight (x) . | . . . . . . . . . . . . . . . . . . Largest Inventory Capacity 15 | 8 15 8 8 8 8 8 10 10 10 10 10 10 10 10 10 10 10 Average Capacity 9 | 7 14 7 8 8 8 8 8 10 10 10 10 10 10 10 10 10 8 Most Carried 10 | 4 7 8 8 8 8 8 10 10 10 10 10 10 10 10 10 10 10 Average Carried 8 | 2 6 6 7 7 7 8 8 10 9 10 9 9 10 9 9 10 6 Final Capacity 10 | 8 5 8 8 8 8 8 10 10 10 10 10 10 10 10 10 10 5 Final Carried 10 | 4 5 8 8 8 8 8 10 10 10 10 9 10 10 10 10 10 5 Class Distribution -------------------- 20% | Mutant 19% | Bothacker-Sprinter 17% | Botlord-Sprinter 16% | Scavenger-Mutant 12% | Commander-Mutant 7% | Botlord-Mutant 3% | Sprinter Dominant Class ---------------- Mutant | -10/Materials Mutant | -9/Materials Scavenger-Mutant | -9/Mines Mutant | -8/Materials Commander-Mutant | -8/Garrison Commander-Mutant | -7/Factory Bothacker-Sprinter | -7/DSF Bothacker-Sprinter | -6/Factory Bothacker-Sprinter | -6/Garrison Sprinter | -6/Factory Sprinter | -6/DSF Botlord-Sprinter | -6/Garrison Botlord-Sprinter | -5/Factory Botlord-Sprinter | -5/DSF Botlord-Sprinter | -4/Factory Botlord-Mutant | -4/Waste Botlord-Mutant | -4/Factory Resources | -11 -10 -9 -9 -8 -8 -7 -7 -6 -6 -6 -6 -6 -5 -5 -4 -4 -4 ----------- Run | Jun Mat Mat Min Mat Gar Fac DSF Fac Gar Fac DSF Gar Fac DSF Fac Was Fac Matter Collected 1880 | 203 194 109 52 20 . . 398 . 270 10 13 432 23 . . . 156 Remotely . | . . . . . . . . . . . . . . . . . . Salvage Created 1314 | . 405 180 . 129 . . 141 . 167 . 41 201 . . . . 50 Parts 85 | . 23 19 . 12 . . 7 . 9 . 9 4 . . . . 2 Haulers Intercepted 5 | . 2 . . 1 . . 2 . . . . . . . . . . Recyclers Shooed 2 | . . 1 . . . . . . . . . . . . . . 1 Parts Field Recycled . | . . . . . . . . . . . . . . . . . . Retrieved Matter . | . . . . . . . . . . . . . . . . . . Parts Self-Destructed . | . . . . . . . . . . . . . . . . . . Prevented . | . . . . . . . . . . . . . . . . . . Kills | -11 -10 -9 -9 -8 -8 -7 -7 -6 -6 -6 -6 -6 -5 -5 -4 -4 -4 ------- Run | Jun Mat Mat Min Mat Gar Fac DSF Fac Gar Fac DSF Gar Fac DSF Fac Was Fac Combat Hostiles Destroyed 38 | . 9 8 . 5 . . 1 . 7 . 3 3 . . . . 2 Melee 8 | . . . . . . . 1 . 2 . . 3 . . . . 2 Guns 12 | . 8 2 . 2 . . . . . . . . . . . . . AOE 18 | . 1 6 . 3 . . . . 5 . 3 . . . . . . Classes Destroyed 8 | . 3 2 . . . . 1 . 2 . . . . . . . . Worker 1 | . . 1 . . . . . . . . . . . . . . . Hauler 5 | . 2 . . 1 . . 2 . . . . . . . . . . Swarmer 18 | . 3 6 . 4 . . . . 3 . . . . . . . 2 Cutter 5 | . . . . . . . . . 2 . 3 . . . . . . Grunt 10 | . 6 . . . . . . . 1 . . 3 . . . . . Sentry 3 | . . 2 . 1 . . . . . . . . . . . . . Specialist 1 | . . . . . . . 1 . . . . . . . . . . Programmer 1 | . . . . . . . . . 1 . . . . . . . . Best Kill Streak 4 | . 3 4 . 4 . . 1 . 3 . 3 1 . . . . 2 Combat Bots Only 4 | . 3 4 . 4 . . 1 . 3 . 3 1 . . . . 2 Max Kills in Single Turn 4 | . 1 4 . 3 . . 1 . 2 . 3 1 . . . . 1 Gunslinging . | . . . . . . . . . . . . . . . . . . Exploded 3 | . 1 3 . 3 . . . . 2 . 3 . . . . . . Melee 1 | . . . . . . . 1 . 1 . . 1 . . . . 1 Uniques/NPCs Destroyed . | . . . . . . . . . . . . . . . . . . Combat | -11 -10 -9 -9 -8 -8 -7 -7 -6 -6 -6 -6 -6 -5 -5 -4 -4 -4 -------- Run | Jun Mat Mat Min Mat Gar Fac DSF Fac Gar Fac DSF Gar Fac DSF Fac Was Fac Damage Taken 5951 | . 254 288 . 274 . . 119 . 605 . 246 682 . 80 532 . 2871 Core 1957 | . 33 65 . 91 . . 67 . 119 . 84 266 . 61 247 . 924 Absorbed by Shields 61 | . . . . . . . . . 57 . . 4 . . . . . Regen/Repaired (Parts) 78 | . . . . 78 . . . . . . . . . . . . . Core Remaining (%) 82 | 100 86 . 83 . 83 . 90 . . . . 44 . 93 . . . Volleys Fired 107 | . 28 12 . 19 . . . . 13 . 1 20 1 . 4 . 9 Largest 2 | . 2 2 . 1 . . . . 1 . 1 2 1 . 1 . 1 Hottest 138 | . 60 65 . 45 . . . . 81 . 36 138 5 . 81 . 81 Shots Fired 141 | . 56 15 . 19 . . . . 13 . 1 23 1 . 4 . 9 Gun 112 | . 56 12 . 16 . . . . 8 . . 9 . . 3 . 8 Cannon . | . . . . . . . . . . . . . . . . . . Launcher 12 | . . 3 . 3 . . . . 5 . 1 . . . . . . Special 17 | . . . . . . . . . . . . 14 1 . 1 . 1 Kinetic 31 | . 28 3 . . . . . . . . . . . . . . . Thermal 28 | . . . . . . . . . 8 . . 9 . . 3 . 8 Explosive 12 | . . 3 . 3 . . . . 5 . 1 . . . . . . Electromagnetic 53 | . 28 9 . 16 . . . . . . . . . . . . . Robot Hit Streak 12 | . 9 10 . 12 . . . . 8 . 9 12 3 . 4 . 4 Robot Miss Streak 5 | . 4 1 . 5 . . . . 1 . . 1 . . 1 . 2 Penetration Max . | . . . . . . . . . . . . . . . . . . Secondary Targets . | . . . . . . . . . . . . . . . . . . Shots Hit Robots 165 | . 34 12 . 14 26 . 9 . 23 . 1 31 1 . 2 . 12 Core Hits 68 | . 19 13 . 10 . . 2 . 11 . 4 6 . . . . 3 Critical Kills . | . . . . . . . . . . . . . . . . . . Critical Parts Destroyed . | . . . . . . . . . . . . . . . . . . Critical Strikes 6 | . . . . . . . 2 . 2 . . . . . . . 2 Burn 2 | . . . . . . . . . . . . . . . . . 2 Sever 4 | . . . . . . . 2 . 2 . . . . . . . . Melee Attacks 113 | . . . . . 31 . 10 . 30 . . 29 . . 2 . 11 Impact . | . . . . . . . . . . . . . . . . . . Slashing 70 | . . . . . 5 . 10 . 20 . . 22 . . 2 . 11 Piercing . | . . . . . . . . . . . . . . . . . . Sneak Attacks 27 | . . . . . 24 . 2 . 1 . . . . . . . . Combat Hostiles 17 | . . . . . 16 . . . 1 . . . . . . . . Follow-up Attacks . | . . . . . . . . . . . . . . . . . . Damage Inflicted 3920 | . 575 448 . 332 . . 448 . 893 . 196 608 . . 34 . 386 Guns 1318 | . 478 149 . 168 . . . . 192 . . 145 . . 30 . 156 Cannons . | . . . . . . . . . . . . . . . . . . Explosions 1132 | . 97 299 . 164 . . . . 376 . 196 . . . . . . Melee 1441 | . . . . . . . 448 . 325 . . 463 . . . . 205 Ramming 29 | . . . . . . . . . . . . . . . 4 . 25 Kinetic 262 | . 239 23 . . . . . . . . . . . . . . . Thermal 620 | . 97 . . . . . . . 192 . . 145 . . 30 . 156 Explosive 1035 | . . 299 . 164 . . . . 376 . 196 . . . . . . Electromagnetic 533 | . 239 126 . 168 . . . . . . . . . . . . . Impact . | . . . . . . . . . . . . . . . . . . Slashing 1441 | . . . . . . . 448 . 325 . . 463 . . . . 205 Piercing . | . . . . . . . . . . . . . . . . . . Highest Corruption 15 | . . . . . . . 5 . . . . 1 . . 4 13 15 Average Corruption 7 | . . . . . . . 5 . . . . 1 . . 3 8 14 Corruption Purged . | . . . . . . . . . . . . . . . . . . Corruption Blocked . | . . . . . . . . . . . . . . . . . . Effects 28 | . . . . . . . 3 . . . . 4 . . 3 . 18 Message Errors 5 | . . . . . . . 1 . . . . 2 . . . . 2 Matter Fused 9 | . . . . . . . 1 . . . . 1 . . 3 . 4 Heat Flow Errors 5 | . . . . . . . 1 . . . . . . . . . 4 Energy Discharges 4 | . . . . . . . . . . . . . . . . . 4 Parts Rejected 1 | . . . . . . . . . . . . . . . . . 1 Data Loss (minor) 2 | . . . . . . . . . . . . 1 . . . . 1 Misdirections 2 | . . . . . . . . . . . . . . . . . 2 Overload Shots . | . . . . . . . . . . . . . . . . . . Overflow Damage 109 | . . 36 . . . . 25 . 23 . 4 . . . . . 21 Projectiles . | . . . . . . . . . . . . . . . . . . Explosions 40 | . . 36 . . . . . . . . 4 . . . . . . Melee 69 | . . . . . . . 25 . 23 . . . . . . . 21 Knockbacks 1 | . . . . . . . . . . . . . . . . . 1 Impact 1 | . . . . . . . . . . . . . . . . . 1 Kinetic . | . . . . . . . . . . . . . . . . . . Secondary . | . . . . . . . . . . . . . . . . . . Self-Inflicted Damage 80 | . . . . 12 . . . . . . 56 . . . 1 . 11 Shots 2 | . . . . 1 . . . . . . 1 . . . . . . Rammed 7 | . . . . . . . . . . . . . . . 3 . 4 Targets Rammed 7 | . . . . . . . . . . . . . . . 3 . 4 Kicked . | . . . . . . . . . . . . . . . . . . Crushed . | . . . . . . . . . . . . . . . . . . Highest Temperature 358 | . 69 48 . 8 . . 248 . 358 . . 144 . . 83 . 224 Average Temperature 61 | . 21 22 . 5 . . 107 . 138 . . 50 . . 51 . 77 Received Heat Transfer 970 | . 114 108 . 81 . . . . 171 . 12 306 . . 51 . 127 Effects 3 | . . . . . . . . . 3 . . . . . . . . Shutdowns 1 | . . . . . . . . . 1 . . . . . . . . Short Circuit 1 | . . . . . . . . . 1 . . . . . . . . Damage (minor) 1 | . . . . . . . . . 1 . . . . . . . . Siege Activations . | . . . . . . . . . . . . . . . . . . Robots Corrupted . | . . . . . . . . . . . . . . . . . . Combat Hostiles . | . . . . . . . . . . . . . . . . . . Parts Fried 3 | . . 1 . 2 . . . . . . . . . . . . . Impact Corruptions . | . . . . . . . . . . . . . . . . . . Robots Melted . | . . . . . . . . . . . . . . . . . . Combat Hostiles . | . . . . . . . . . . . . . . . . . . Parts Melted 1 | . . . . . . . . . 1 . . . . . . . . Heat Transferred 1054 | . 150 . . . . . . . 296 . . 201 . . 37 . 370 Parts Sabotaged . | . . . . . . . . . . . . . . . . . . Parts Stolen . | . . . . . . . . . . . . . . . . . . Parts Stripped . | . . . . . . . . . . . . . . . . . . Power Chain Reactions 2 | . 2 . . . . . . . . . . . . . . . . Missiles Intercepted . | . . . . . . . . . . . . . . . . . . Alert | -11 -10 -9 -9 -8 -8 -7 -7 -6 -6 -6 -6 -6 -5 -5 -4 -4 -4 ------- Run | Jun Mat Mat Min Mat Gar Fac DSF Fac Gar Fac DSF Gar Fac DSF Fac Was Fac Peak Influence 605 | . 244 287 252 293 595 316 317 144 605 328 276 385 228 161 179 104 120 Initial 317 | . . 102 111 98 182 312 221 144 100 317 231 192 201 159 31 56 72 Average 242 | . 124 208 212 165 383 313 262 144 358 325 239 286 226 116 112 75 71 Maximum Alert Level 2 | . 1 1 1 1 2 1 1 . 2 1 1 1 1 . . . . Low Security (%) 38 | 100 83 40 30 91 2 . 4 100 8 . . 10 . 100 100 100 100 Level 1 49 | . 16 59 69 8 57 100 95 . 55 100 100 89 100 . . . . Level 2 11 | . . . . . 40 . . . 35 . . . . . . . . Level 3 . | . . . . . . . . . . . . . . . . . . Level 4 . | . . . . . . . . . . . . . . . . . . Level 5 . | . . . . . . . . . . . . . . . . . . High Security . | . . . . . . . . . . . . . . . . . . Max Security . | . . . . . . . . . . . . . . . . . . Sterilizations 1 | . . . . . . . 1 . . . . . . . . . . Squads Dispatched 15 | . . 1 . 2 . . 1 . . . 1 . . 2 3 . 5 Investigation 5 | . . . . . . . . . . . . . . . 1 . 4 Extermination 1 | . . . . . . . . . . . . . . . . . 1 Reinforcement 7 | . . 1 . 1 . . 1 . . . 1 . . 2 1 . . Assault 1 | . . . . . . . . . . . . . . . 1 . . Garrison 1 | . . . . 1 . . . . . . . . . . . . . Intercept . | . . . . . . . . . . . . . . . . . . Searches Triggered . | . . . . . . . . . . . . . . . . . . Construction Impeded . | . . . . . . . . . . . . . . . . . . Haulers Reinforced . | . . . . . . . . . . . . . . . . . . Active Scanning Responses . | . . . . . . . . . . . . . . . . . . Cargo Convoy Interrupts . | . . . . . . . . . . . . . . . . . . Stealth | -11 -10 -9 -9 -8 -8 -7 -7 -6 -6 -6 -6 -6 -5 -5 -4 -4 -4 --------- Run | Jun Mat Mat Min Mat Gar Fac DSF Fac Gar Fac DSF Gar Fac DSF Fac Was Fac Distress Signals 5 | . . 3 . 1 . . . . . . . . . . . . 1 Communications Jammed . | . . . . . . . . . . . . . . . . . . Distress Signals . | . . . . . . . . . . . . . . . . . . Times Spotted 180 | . 11 19 6 14 . . 6 . 30 1 6 18 1 9 15 5 39 Peak Tracking Total 15 | . 3 8 5 8 . . 3 . 8 2 7 4 1 8 11 5 15 Tactical Retreats 19 | . . 2 1 . . . 1 . 4 . . 1 . 1 1 . 8 Traps | -11 -10 -9 -9 -8 -8 -7 -7 -6 -6 -6 -6 -6 -5 -5 -4 -4 -4 ------- Run | Jun Mat Mat Min Mat Gar Fac DSF Fac Gar Fac DSF Gar Fac DSF Fac Was Fac Traps Triggered 15 | . . . . . . . 1 . 7 . 1 5 . . 1 . . Indirectly . | . . . . . . . . . . . . . . . . . . Trap Hack Attempts . | . . . . . . . . . . . . . . . . . . Triggered . | . . . . . . . . . . . . . . . . . . Disarmed . | . . . . . . . . . . . . . . . . . . Reprogrammed . | . . . . . . . . . . . . . . . . . . Reused . | . . . . . . . . . . . . . . . . . . Traps Extracted . | . . . . . . . . . . . . . . . . . . Installed . | . . . . . . . . . . . . . . . . . . Triggered . | . . . . . . . . . . . . . . . . . . Machines | -11 -10 -9 -9 -8 -8 -7 -7 -6 -6 -6 -6 -6 -5 -5 -4 -4 -4 ---------- Run | Jun Mat Mat Min Mat Gar Fac DSF Fac Gar Fac DSF Gar Fac DSF Fac Was Fac Machines Disabled 22 | . . . . 2 5 . 1 . 9 . . 3 . . 2 . . Max in Single Turn 1 | . . . . 1 1 . . . 1 . . 1 . . 1 . . Garrison Access 2 | . . . . . . . . . . . . . . . 2 . . Garrison Relay 13 | . . . . . 5 . . . 5 . . 3 . . . . . Machines Repaired . | . . . . . . . . . . . . . . . . . . Machines Sabotaged . | . . . . . . . . . . . . . . . . . . Overloaded Fab Kills . | . . . . . . . . . . . . . . . . . . Hacking | -11 -10 -9 -9 -8 -8 -7 -7 -6 -6 -6 -6 -6 -5 -5 -4 -4 -4 --------- Run | Jun Mat Mat Min Mat Gar Fac DSF Fac Gar Fac DSF Gar Fac DSF Fac Was Fac Machines Accessed 36 | . 3 6 . 6 2 1 . 1 . 2 . 1 2 . 6 . 6 Terminals 26 | . 3 5 . 4 2 1 . . . 2 . 1 2 . 3 . 3 Fabricators 3 | . . . . . . . . . . . . . . . . . 3 Repair Stations 2 | . . . . 1 . . . . . . . . . . 1 . . Recycling Units . | . . . . . . . . . . . . . . . . . . Scanalyzers 2 | . . 1 . . . . . . . . . . . . 1 . . Garrison Access 3 | . . . . 1 . . . 1 . . . . . . 1 . . Total Hacks 97 | . 10 17 . 24 2 2 . 1 . 8 . 1 6 . 15 . 11 Successful 46 | . 3 12 . 15 . 1 . 1 . 2 . 1 2 . 6 . 3 Failed 51 | . 7 5 . 9 2 1 . . . 6 . . 4 . 9 . 8 Catastrophic 10 | . . . . 2 2 . . . . 1 . . . . 1 . 4 Database Lockouts . | . . . . . . . . . . . . . . . . . . Manual 54 | . 7 12 . 14 . . . . . 5 . . 2 . 9 . 5 Terminals 72 | . 10 15 . 14 2 2 . . . 8 . 1 6 . 9 . 5 Fabricators 6 | . . . . . . . . . . . . . . . . . 6 Repair Stations 11 | . . . . 9 . . . . . . . . . . 2 . . Recycling Units . | . . . . . . . . . . . . . . . . . . Scanalyzers 5 | . . 2 . . . . . . . . . . . . 3 . . Garrison Access 3 | . . . . 1 . . . 1 . . . . . . 1 . . Terminal Hacks 10 | . 1 4 . 1 . 1 . . . 1 . 1 1 . . . . Open DSF 3 | . . . . . . 1 . . . 1 . . 1 . . . . Terminal Index 2 | . . 1 . 1 . . . . . . . . . . . . . Unreport Threat 1 | . . 1 . . . . . . . . . . . . . . . Hauler Manifests 1 | . . 1 . . . . . . . . . . . . . . . Zone Layout 2 | . 1 1 . . . . . . . . . . . . . . . Garrison Registry 1 | . . . . . . . . . . . . 1 . . . . . Fabricator Hacks 3 | . . . . . . . . . . . . . . . . . 3 Load Schematic 2 | . . . . . . . . . . . . . . . . . 2 Build 1 | . . . . . . . . . . . . . . . . . 1 Repair Station Hacks 10 | . . . . 9 . . . . . . . . . . 1 . . Scan Component 5 | . . . . 4 . . . . . . . . . . 1 . . Repair 4 | . . . . 4 . . . . . . . . . . . . . Refit 1 | . . . . 1 . . . . . . . . . . . . . Recycling Unit Hacks . | . . . . . . . . . . . . . . . . . . Scanalyzer 4 | . . 2 . . . . . . . . . . . . 2 . . Insert Component 2 | . . 1 . . . . . . . . . . . . 1 . . Analyze 2 | . . 1 . . . . . . . . . . . . 1 . . Garrison Access Hacks 3 | . . . . 1 . . . 1 . . . . . . 1 . . Unlock Access 2 | . . . . 1 . . . 1 . . . . . . . . . Seal Access 1 | . . . . . . . . . . . . . . . 1 . . Unauthorized Hacks 16 | . 2 6 . 4 . . . . . 1 . . 1 . 2 . . Terminals 16 | . 2 6 . 4 . . . . . 1 . . 1 . 2 . . Track 2 | . . 2 . . . . . . . . . . . . . . . Botnet 14 | . 2 4 . 4 . . . . . 1 . . 1 . 2 . . Fabricators . | . . . . . . . . . . . . . . . . . . Repair Stations . | . . . . . . . . . . . . . . . . . . Recycling Units . | . . . . . . . . . . . . . . . . . . Scanalyzers . | . . . . . . . . . . . . . . . . . . Garrison Access . | . . . . . . . . . . . . . . . . . . Data Cores Recovered 1 | . . . . . . . . . . . . . 1 . . . . Used 1 | . . . . . . . . . . . . . 1 . . . . Hacking Detections 29 | . 3 4 . 6 2 1 . . . 1 . 1 1 . 4 . 6 Full Trace Events 6 | . 1 . . . . . . . . . . . . . 1 . 4 Feedback Events 1 | . . . . . . . . . . . . . . . 1 . . Corruption 1 | . . . . . . . . . . . . . . . 1 . . Feedback Blocked . | . . . . . . . . . . . . . . . . . . Robot Schematics Acquired . | . . . . . . . . . . . . . . . . . . Robots Built . | . . . . . . . . . . . . . . . . . . Authchips . | . . . . . . . . . . . . . . . . . . Time . | . . . . . . . . . . . . . . . . . . Total Robot Build Rating . | . . . . . . . . . . . . . . . . . . Part Schematics Acquired 2 | . . 1 . . . . . . . . . . . . 1 . . Parts Built 2 | . . . . . . . . . . . . . . . . . 2 Authchips . | . . . . . . . . . . . . . . . . . . Time 84 | . . . . . . . . . . . . . . . . . 84 Total Part Build Rating 8 | . . . . . . . . . . . . . . . . . 8 Parts Repaired 4 | . . . . 4 . . . . . . . . . . . . . Time 104 | . . . . 104 . . . . . . . . . . . . . Parts Recycled . | . . . . . . . . . . . . . . . . . . Recycled Matter . | . . . . . . . . . . . . . . . . . . Retrieved Matter . | . . . . . . . . . . . . . . . . . . Retrieved Components . | . . . . . . . . . . . . . . . . . . Parts Scanalyzed 2 | . . 1 . . . . . . . . . . . . 1 . . Part Schematics Acquired 2 | . . 1 . . . . . . . . . . . . 1 . . Parts Damaged . | . . . . . . . . . . . . . . . . . . Bothacking | -11 -10 -9 -9 -8 -8 -7 -7 -6 -6 -6 -6 -6 -5 -5 -4 -4 -4 ------------ Run | Jun Mat Mat Min Mat Gar Fac DSF Fac Gar Fac DSF Gar Fac DSF Fac Was Fac Used RIF Installer 4 | . . . . . 2 . . . 1 . . 1 . . . . . Threat Obfuscator 1 | . . . . . 1 . . . . . . . . . . . . Robot Detection 1 | . . . . . . . . . 1 . . . . . . . . Autoassimilate 1 | . . . . . . . . . . . . 1 . . . . . Robots Hacked 29 | . . . . . . . . . 8 . . 14 1 . 3 . 3 Non-combat 1 | . . . . . . . . . . . . . 1 . . . . Combat 28 | . . . . . . . . . 8 . . 14 . . 3 . 3 Autoassimilated 5 | . . . . . . . . . . . . 1 . . 2 . 2 Robot Hacks Applied 24 | . . . . . . . . . 8 . . 13 1 . 1 . 1 parse_system 1 | . . . . . . . . . . . . . . . . . 1 scatter_targeting 4 | . . . . . . . . . . . . 4 . . . . . overload_power 1 | . . . . . . . . . . . . . 1 . . . . overwrite_iff 1 | . . . . . . . . . 1 . . . . . . . . streamctrl_high 1 | . . . . . . . . . 1 . . . . . . . . formatsys_high 16 | . . . . . . . . . 6 . . 9 . . 1 . . Relay Couplers Released 50 | . . . . . 18 . . . 18 . . 12 . . 2 . . Machine Destruction 50 | . . . . . 18 . . . 18 . . 12 . . 2 . . Attached 21 | . . . . . 5 . 1 . 8 . . 6 . . 1 . . Fabnet Peak Effective % . | . . . . . . . . . . . . . . . . . . Robots Rewired 9 | . . . . . 9 . . . . . . . . . . . . Allies Hacked . | . . . . . . . . . . . . . . . . . . Hacks Repelled . | . . . . . . . . . . . . . . . . . . Allies | -11 -10 -9 -9 -8 -8 -7 -7 -6 -6 -6 -6 -6 -5 -5 -4 -4 -4 -------- Run | Jun Mat Mat Min Mat Gar Fac DSF Fac Gar Fac DSF Gar Fac DSF Fac Was Fac Total Allies 38 | . . . 4 . 9 . . . 10 . . 10 . . 3 . 2 Largest Group 9 | . . . 3 3 9 9 9 1 5 . . 6 6 6 2 . 1 Highest-Rated Group 222 | . . . 55 55 141 141 141 21 222 . . 164 164 164 102 . 49 Highest-Rated Ally 89 | . . . 31 31 21 21 21 21 89 . . 32 32 32 58 . 49 Total Orders 3 | . . . . . . . . . . . . . . 3 . . . STAY 1 | . . . . . . . . . . . . . . 1 . . . FOLLOW 1 | . . . . . . . . . . . . . . 1 . . . GUARD 1 | . . . . . . . . . . . . . . 1 . . . Ally Attacks 220 | . . . 18 5 . . 80 . 64 . . 33 3 5 5 . 7 Total Damage 4787 | . . . 201 26 . . 1327 . 2026 . . 516 66 187 207 . 231 Kills 34 | . . . 5 . . . 8 . 11 . . 7 1 1 . . 1 Allies Corrupted . | . . . . . . . . . . . . . . . . . . Allies Melted . | . . . . . . . . . . . . . . . . . . Intel | -11 -10 -9 -9 -8 -8 -7 -7 -6 -6 -6 -6 -6 -5 -5 -4 -4 -4 ------- Run | Jun Mat Mat Min Mat Gar Fac DSF Fac Gar Fac DSF Gar Fac DSF Fac Was Fac Robot Analysis Total . | . . . . . . . . . . . . . . . . . . Derelict Logs Recovered 2 | . . . 2 . . . . . . . . . . . . . . Drone Launches . | . . . . . . . . . . . . . . . . . . Drone Recoveries . | . . . . . . . . . . . . . . . . . . Exploration | -11 -10 -9 -9 -8 -8 -7 -7 -6 -6 -6 -6 -6 -5 -5 -4 -4 -4 ------------- Run | Jun Mat Mat Min Mat Gar Fac DSF Fac Gar Fac DSF Gar Fac DSF Fac Was Fac Turns Passed 4515 | 52 349 200 234 260 733 69 247 37 622 22 49 769 52 71 249 28 472 Spaces Moved 6939 | 45 250 423 497 255 1088 74 421 69 935 77 83 904 110 183 598 82 845 Core 269 | 3 1 . . . . . . . . . . . . . . . 265 Treads 1 | . 1 . . . . . . . . . . . . . . . . Legs 127 | . . . . . . . . . . . . 127 . . . . . Wheels 237 | 42 195 . . . . . . . . . . . . . . . . Hover 36 | . . . . . . . . . . . . . . . . . 36 Flight 6269 | . 53 423 497 255 1088 74 421 69 935 77 83 777 110 183 598 82 544 Fastest Speed 24 | 50 37 34 34 34 34 54 27 31 28 28 28 27 27 27 24 34 31 Average Speed 41 | 86 95 34 34 36 52 54 31 31 30 28 28 42 27 27 33 34 44 Slowest Speed 365 | 90 240 37 34 39 54 54 54 31 114 28 32 365 27 27 114 34 200 Overloaded Moves . | . . . . . . . . . . . . . . . . . . Propulsion Burnouts . | . . . . . . . . . . . . . . . . . . Robots Hopped 31 | . . 5 7 . 5 . . . . . 1 . . . 4 . 9 Cave-ins Triggered . | . . . . . . . . . . . . . . . . . . Exploration Rate (%) 45 | 4 40 50 98 35 93 2 94 2 61 3 71 56 3 90 16 72 31 Regions Visited 17 Branch Regions 1 Pre-discovered Areas . | . . . . . . . . . . . . . . . . . . Known Exits Taken 5 | . . . . 1 . 1 . 1 . 1 . . 1 . . . . Unknown Exits Taken 4 | 1 1 1 1 . . . . . . . . . . . . . . Scrap Searched 3 | . . . 3 . . . . . . . . . . . . . . Spaces Dug 2 | . . . . . . . . . . . . . . . . . 2 Terrain Destroyed 73 | . 5 20 . 10 . . . . 24 . 12 . . . . . 2 Melee 2 | . . . . . . . . . . . . . . . . . 2 Projectile . | . . . . . . . . . . . . . . . . . . AOE 71 | . 5 20 . 10 . . . . 24 . 12 . . . . . . Terrain Rammed . | . . . . . . . . . . . . . . . . . . Walls Destroyed . | . . . . . . . . . . . . . . . . . . Machines Disabled . | . . . . . . . . . . . . . . . . . . Actions | -11 -10 -9 -9 -8 -8 -7 -7 -6 -6 -6 -6 -6 -5 -5 -4 -4 -4 --------- Run | Jun Mat Mat Min Mat Gar Fac DSF Fac Gar Fac DSF Gar Fac DSF Fac Was Fac Total 8296 | 54 303 461 554 401 1239 102 528 83 1212 76 105 1225 130 203 637 81 902 Wait 674 | . 8 1 63 104 100 28 52 15 114 . . 129 19 13 7 . 21 Move 6860 | 44 249 412 483 254 1076 73 420 68 933 76 80 902 109 182 590 81 828 Hop 29 | . . 5 6 . 5 . . . . . 1 . . . 4 . 8 Pick Up 66 | 4 5 8 1 1 7 . 7 . 6 . 1 16 . 1 6 . 3 Fast Attach 72 | 6 7 5 . 10 7 1 3 . 11 . . 13 1 1 3 . 4 Attach 46 | . . 5 . 1 2 . 1 . 6 . 2 11 . 2 5 . 11 Detach 28 | . 1 5 . 2 4 . 1 . 4 . . 4 . 1 3 . 3 Swap 60 | . 1 1 . 4 . . 10 . 7 . 1 29 . 2 5 . . Drop 73 | . 4 7 1 6 7 . 16 . 8 . 1 17 . 1 5 . . Fire 107 | . 28 12 . 19 . . . . 13 . 1 20 1 . 4 . 9 Melee 113 | . . . . . 31 . 10 . 30 . . 29 . . 2 . 11 Ram 7 | . . . . . . . . . . . . . . . 3 . 4 Kick . | . . . . . . . . . . . . . . . . . . Crush . | . . . . . . . . . . . . . . . . . . Escape Stasis 159 | . . . . . . . 8 . 79 . 18 54 . . . . . Rewire 2 | . . . . . . . . . 1 . . 1 . . . . . Trap . | . . . . . . . . . . . . . . . . . . Miscellaneous . | . . . . . . . . . . . . . . . . . . Route ------- -11/Junkyard -10/Materials -9/Materials (discovered 3 exits: *Mat x2 / [*Min]) -9/Mines (discovered 2 exits: *Mat x2) -8/Materials -8/Garrison (discovered 3 exits: *Fac x3) -7/Factory (discovered 2 exits: *Fac / DSF) -7/DSF -6/Factory -6/Garrison -6/Factory -6/DSF -6/Garrison (discovered 3 exits: *Fac x3) -5/Factory -5/DSF -4/Factory (discovered 2 exits: *Upp x2) -4/Waste -4/Factory History --------- Turn | Location | Event 17 | -11/Junkyard | Discovered new exit (range 14) 53 | -11/Junkyard | Entered Materials 305 | -10/Materials | Build established: Mutant 308 | -10/Materials | Discovered new exit (range 17) 374 | -10/Materials | Released all parts (6) 402 | -10/Materials | Entered another Materials area 402 | -9/Materials | Evolved 2 slots: Propulsion x1, Utility x1 510 | -9/Materials | Discovered new exit (range 14) 547 | -9/Materials | Discovered new exit (range 17) 597 | -9/Materials | Discovered new exit (range 12) 602 | -9/Materials | Entered Mines 605 | -9/Mines | Assisted by bots powering up and referring to "LRC-V3" 613 | -9/Mines | Learned Materials emergency access door positions 684 | -9/Mines | Learned Materials emergency access door positions 721 | -9/Mines | Discovered new exit (range 4) 724 | -9/Mines | Received a Mining Laser from a helpful Derelict 781 | -9/Mines | Discovered new exit (range 4) 836 | -9/Mines | Entered Materials 836 | -8/Materials | Accompanied by 3 allies 836 | -8/Materials | Evolved 2 slots: Propulsion x1, Utility x1 876 | -8/Materials | Build established: Scavenger-Mutant 949 | -8/Materials | Repaired Lgt. Ion Engine 976 | -8/Materials | Repaired Flight Unit 1004 | -8/Materials | Repaired Flight Unit 1031 | -8/Materials | Repaired Flight Unit 1079 | -8/Materials | Garrison activated, responded to threat 1096 | -8/Materials | Identified exit to Garrison 1096 | -8/Materials | Entered Garrison 1096 | -8/Garrison | Discovered recently destroyed garrison 1200 | -8/Garrison | Discovered new exit (range 10) 1271 | -8/Garrison | Discovered new exit (range 9) 1395 | -8/Garrison | Discovered new exit (range 14) 1425 | -8/Garrison | Installed Relay Interface Framework 1469 | -8/Garrison | Garrison Relay disabled 1500 | -8/Garrison | Garrison Relay disabled 1535 | -8/Garrison | Garrison Relay disabled 1593 | -8/Garrison | Garrison Relay disabled 1601 | -8/Garrison | Build established: Commander-Mutant 1634 | -8/Garrison | Expanded RIF knowledge: Threat Obfuscation 1665 | -8/Garrison | Garrison Relay disabled 1829 | -8/Garrison | Entered Factory 1829 | -7/Factory | Accompanied by 9 allies 1829 | -7/Factory | Evolved 2 slots: Utility x2 1865 | -7/Factory | Discovered new exit (range 8) 1872 | -7/Factory | Identified exit to DSF 1898 | -7/Factory | Entered DSF 1898 | -7/DSF | Accompanied by 9 allies 1924 | -7/DSF | Additional patrols routed to DSF 1959 | -7/DSF | Discovered new exit (range 16) 2081 | -7/DSF | Sterilization system engaged 2101 | -7/DSF | Ambient heat levels rising (+10) 2116 | -7/DSF | Ambient heat levels rising (+10) 2131 | -7/DSF | Ambient heat levels rising (+10) 2145 | -7/DSF | Entered Factory 2145 | -6/Factory | Accompanied by 1 ally 2145 | -6/Factory | Evolved 2 slots: Utility x2 2166 | -6/Factory | Identified exit to Garrison 2182 | -6/Factory | Entered Garrison 2182 | -6/Garrison | Accompanied by 1 ally 2214 | -6/Garrison | Triggered checkpoint 2220 | -6/Garrison | Garrison Relay disabled 2251 | -6/Garrison | Build established: Bothacker-Sprinter 2276 | -6/Garrison | Triggered checkpoint 2308 | -6/Garrison | Triggered checkpoint 2332 | -6/Garrison | Triggered checkpoint 2376 | -6/Garrison | Triggered checkpoint 2407 | -6/Garrison | Lost 4 parts (1p2n1u) 2432 | -6/Garrison | Found embedded Infiltrators 2439 | -6/Garrison | Garrison Relay disabled 2452 | -6/Garrison | Triggered checkpoint 2499 | -6/Garrison | Expanded RIF knowledge: Robot Detection 2525 | -6/Garrison | Discovered new exit (range 10) 2530 | -6/Garrison | Triggered checkpoint 2532 | -6/Garrison | Triggered checkpoint 2643 | -6/Garrison | Garrison Relay disabled 2651 | -6/Garrison | Garrison Relay disabled 2730 | -6/Garrison | Garrison Relay disabled 2804 | -6/Garrison | Entered Factory 2826 | -6/Factory | Identified exit to DSF 2826 | -6/Factory | Entered DSF 2840 | -6/DSF | Additional patrols routed to DSF 2869 | -6/DSF | Discovered new exit (range 16) 2875 | -6/DSF | Entered Garrison 2894 | -6/Garrison | Triggered checkpoint 2925 | -6/Garrison | Lost 5 parts (3n1u1w) 2941 | -6/Garrison | Spotted B-86 Titan 2945 | -6/Garrison | Discovered new exit (range 11) 2954 | -6/Garrison | Garrison Relay disabled 2985 | -6/Garrison | Triggered checkpoint 3053 | -6/Garrison | Lost 7 parts (1p4n1u1w) 3060 | -6/Garrison | Expanded RIF knowledge: Autoassimilate 3168 | -6/Garrison | Core integrity fell below 50% 3200 | -6/Garrison | Triggered checkpoint 3254 | -6/Garrison | Discovered new exit (range 11) 3268 | -6/Garrison | Garrison Relay disabled 3280 | -6/Garrison | Triggered checkpoint 3398 | -6/Garrison | Triggered checkpoint 3434 | -6/Garrison | Garrison Relay disabled 3456 | -6/Garrison | Discovered new exit (range 54) 3456 | -6/Garrison | Discovered new exit (range 88) 3456 | -6/Garrison | Discovered new exit (range 74) 3496 | -6/Garrison | Build established: Botlord-Sprinter 3644 | -6/Garrison | Entered Factory 3644 | -5/Factory | Accompanied by 6 allies 3644 | -5/Factory | Evolved 2 slots: Utility x2 3677 | -5/Factory | Identified exit to DSF 3696 | -5/Factory | Entered DSF 3696 | -5/DSF | Accompanied by 6 allies 3708 | -5/DSF | Discovered new exit (range 15) 3714 | -5/DSF | Additional patrols routed to DSF 3767 | -5/DSF | Entered Factory 3767 | -4/Factory | Evolved 2 slots: Propulsion x1, Utility x1 3797 | -4/Factory | Found Prototype Processor 3797 | -4/Factory | Identified Exp. Signal Interpreter 3816 | -4/Factory | Discovered new exit (range 15) 3830 | -4/Factory | Identified exit to Upper Caves 3882 | -4/Factory | Discovered exit to Upper Caves (range 8) 3929 | -4/Factory | P-70 Sage assimilated allied Sentinel 7a 3935 | -4/Factory | Spotted B-86 Titan 4002 | -4/Factory | Lost 4 parts (1p2n1w) 4016 | -4/Factory | Sucked down chute 4016 | -4/Factory | Entered Waste 4020 | -4/Waste | Spotted C-40 Crusher 4020 | -4/Waste | Spotted C-40 Crusher 4025 | -4/Waste | Spotted C-40 Crusher 4031 | -4/Waste | EMP discharged 4031 | -4/Waste | System corruption reached 10% 4035 | -4/Waste | Spotted C-40 Crusher 4037 | -4/Waste | Spotted C-40 Crusher 4038 | -4/Waste | Spotted C-40 Crusher 4041 | -4/Waste | Discovered new exit (range 11) 4044 | -4/Waste | Identified exit to Factory 4044 | -4/Waste | Entered Factory 4107 | -4/Factory | Spotted B-86 Titan 4282 | -4/Factory | Fabricated Xenon Bombardment Thruster? 4344 | -4/Factory | Core integrity fell below 50% 4365 | -4/Factory | Core integrity fell below 20% 4405 | -4/Factory | Lost 13 parts (1p6n5u1w) 4516 | -4/Factory | Destroyed by G-67 Veteran with Plasma Rifle Last Messages --------------- 04409_ System corrupted: Heat flow error (+138). 04411_ K-01 Serf collects debris. 04425_ System corrupted: Matter fused (-5). 04426_ Slug penetrates Wall. 04430_ Acquired Adv. VSS Leg. 04449_ System corrupted: Heat flow error (+263). 04456_ Penetrated by Slug. 04457_ Slammed into Y-64 Sentinel. 04476_ System corrupted: Energy discharge (-35). 04482_ Acquired Remote Datajack. 04487_ Power Conduit explodes. 04487_ P-70 Sage destroyed. 04487_ Slammed into W-44 Eye. 04490_ U-05 Engineer lays Concrete. 04490_ K-01 Serf collects debris. 04492_ Imp. Heavy Treads destroyed. 04495_ Slammed into W-44 Eye. 04497_ Relay Coupler [Grunt] destroyed. 04506_ T-07 Excavator is excavating. 04516_ Critical hit (Burn: +50). Map ----- +----------------------------------------------------+ | ?????????????????????????????????????????????????? | | ?????????????????????????????????????????????????? | | ?????????????????????????????????????????????????? | | ?????????????????????????????????????????????????? | | ?????????????????????????????????????????????????? | | ?????????????????????????????????????????????????? | | ?????????????????????????????????????????????????? | | ?????????????????????????????????????????????????? | | ?????????????????????????????????????????????????? | | ?????????????????????????????????????????????????? | | ?????????????????????????????????????????????????? | | ?????????????????????????????????????????????????? | | ?????????????????????????????????????????????????? | | ?????????????????????????????????????????????????? | | ?????????????????????????????????????????????????? | | ??????????????????????????????###????????????????? | | ?????????????????????????????? #????????????????? | | ????????????????????????????? ##### ???????????? | | ????????????????????????????? ????????????? | | ????????????????????????????Y ?????????????? | | ????????#??????????????????? ???????????????? | | ???????? ##???????????????? #????????????????? | | ??####??# #???????????????? #????????????????? | | ? ?# #??????????????? #?????????????????? | | ? """?# #???????######## #?????????????????? | | ![[ """ # ######### @ #?????????????????? | | ![[ """ # #?????????????????? | | ![[ + #?????????????????? | | """ # #?????????????????? | | ! """ ###+####### k #?????????????????? | | ? """?# # #####/##?????????????????? | | ? ?# #g #???? ?????????????????? | | ??####??# | #g #????? ???????????????? | | ????????# + g +?????? ""???????????????? | | ????????# "" "" # g #?????? """??????????????? | | ????????# ""F"" # #???????""???????????????? | | ????????# """ # #???????? ???????????????? | | ????????# # #????????????????????????? | | ????????########### k ###########??????????????? | | ??????????????????# ?????????????? | | ??????????????????# ?????????????? | | ??????????????????# ?????????????? | | #########?????????# ?????????????? | | #?????????# ?????????????? | | """" #############+########### ??????????????? | | """" # ## ! #?????????????????????? | | """" # ## #?????????????????????? | | """" + ## ! #?????????????????????? | | """" # ## #?????????????????????? | | """" # ## #?????????????????????? | +----------------------------------------------------+ Best States ------------- Heat Dissipation 43 Energy Generation 14 Energy Capacity 265 Matter Stores 300 Matter Capacity 300 Sight Range 20 Terrain Scan Density 10 Armor Coverage 150 Evasion (%) 65 Targeting Accuracy 8 Recoil Reduction 2 Salvage Targeting 1 Defensive Hacking 10 Relay Coupler Types 5 Relay Coupler Value 195 Item Schematics ----------------- Flight Unit | -9/Materials | Scanalyzed Xenon Bombardment Thruster | -4/Factory | Scanalyzed Robot Schematics ------------------ None Fabricated ------------ Xenon Bombardment Thruster | x2 | -4/Factory Alien Tech Used ----------------- None Achievements -------------- Assassin Challenges ------------ None Game ------ Seed SupersonicRocketBooster Manual? 0 Play Time 02:00:13 Cumulative 87.9 hours Start 2023.03.11 @ 23:00:32 End 2023.03.12 @ 01:43:11 Sessions 1 Manual Loads 0 Difficulty Rogue Special Mode None Game No. 51 Rogue 51 Adventurer 0 Explorer 0 Win Type - Total 0 Types 0/0/0/0/0/0/0/0/0 Lore% 39 Gallery% 50 Achievement% 41 Wizard Run 0 Options --------- ASCII 0 Keyboard 1 Movement Vi Keybinds 0 Fullscreen 1 Font 12/Smallcaps Map View 83x54 Tactical HUD 1 Map Filters NONE Filters NONE Steam 1 RUN: 1b011c6e-f13b-449a-99a2-015f7752fd57